Cogmind - Beta 13 X2 --- EXPLORER MODE // 2024.01.01 @ 00:40:42 // Winter2022/Polymind Player: Minty Result: Destroyed by Y-45 Defender with Beam Rifle Performance ------------- Evolutions (0) 0 Regions Visited (3) 600 Robots Destroyed (4) 20 Value Destroyed (115) 115 Prototype IDs (0) 0 Alien Tech Used (0) 0 Bonus (655) 655 TOTAL SCORE: 1240 Bonus ------- Polymind Skill 655 Cogmind --------- Core Integrity 0/250 Matter -100/-100 Energy 25/25 System Corruption 6% Temperature Cool (9) Movement Core (300) Ox5 Location -10/Subcaves Parts ------- > --- POWER (1) -------- Ion Engine > --- PROPULSION (2) --- Wheel > --- UTILITY (2) ------ Cobbler Unit > --- WEAPON (0) ------- (None) > --- INVENTORY (1) ---- Makeshift Spear Peak State ------------ > --- POWER ------------ Improved Ion Engine > --- PROPULSION ------- Light Treads Light Treads > --- UTILITY ---------- Heat Sink Heat Sink Light Armor Plating > --- WEAPON ----------- Beam Rifle Heavy Assault Rifle > --- INVENTORY -------- (None) [Rating: 11] Favorites ----------- Power Improved Ion Engine Engine Improved Ion Engine Propulsion Light Treads Treads Light Treads Wheel Wheel Utility Heat Sink Device Heat Sink Protection Light Armor Plating Weapon Beam Rifle Energy Gun Beam Rifle Ballistic Gun Heavy Assault Rifle Special Weapon Mining Laser Build | -11 -10 -10 -10 ------- Run | Yrd Mat Min Sub Slots Evolved . | . . . . Power . | . . . . Propulsion . | . . . . Utility . | . . . . Weapon . | . . . . Parts Attached . | . . . . Power . | . . . . Engine . | . . . . Core . | . . . . Reactor . | . . . . Propulsion . | . . . . Treads . | . . . . Leg . | . . . . Wheel . | . . . . Hover . | . . . . Flight . | . . . . Utility . | . . . . Device . | . . . . Storage . | . . . . Processor . | . . . . Hackware . | . . . . Protection . | . . . . Artifact . | . . . . Weapon . | . . . . Energy Gun . | . . . . Energy Cannon . | . . . . Ballistic Gun . | . . . . Ballistic Cannon . | . . . . Launcher . | . . . . Special Weapon . | . . . . Impact Weapon . | . . . . Slashing Weapon . | . . . . Piercing Weapon . | . . . . Special Melee Weapon . | . . . . Unidentified Prototypes . | . . . . Parts Lost 3 | . . . 3 Power . | . . . . Propulsion 1 | . . . 1 Utility . | . . . . Weapon 2 | . . . 2 Highest Loss Streak 1 | . . . 1 To Critical Strikes . | . . . . Average Slot Usage (%) 89 | . . . 92 Engine 14 | . . . 14 Treads 14 | . . . 14 Wheel 14 | . . . 15 Device 21 | . . . 22 Protection 6 | . . . 7 Energy Gun 6 | . . . 7 Ballistic Gun 6 | . . . 7 Special Weapon 3 | . . . 3 Naked Turns 31 | . 12 7 12 Heaviest Build 18 | . . 6 18 Greatest Support 40 | 3 3 20 40 Greatest Overweight (x) 5 | . . . 5 Average Overweight (x) . | . . . . Largest Inventory Capacity 1 | . . . 1 Average Capacity . | . . . . Most Carried 1 | . . . 1 Average Carried . | . . . . Final Capacity 1 | . . . 1 Final Carried 1 | . . . 1 Class Distribution -------------------- 56% | Sentry 17% | Tunneler 12% | Artisan 7% | Cobbler 4% | Cogmind Dominant Class ---------------- Cogmind | -10/Materials Tunneler | -10/Mines Sentry | -10/Subcaves Resources | -11 -10 -10 -10 ----------- Run | Yrd Mat Min Sub Matter Collected 72 | . . . 72 Remotely . | . . . . Salvage Created 117 | . . . 117 Parts 7 | . . . 7 Haulers Intercepted . | . . . . Recyclers Shooed . | . . . . Parts Field Recycled . | . . . . Retrieved Matter . | . . . . Parts Self-Destructed . | . . . . Prevented . | . . . . Kills | -11 -10 -10 -10 ------- Run | Yrd Mat Min Sub Combat Hostiles Destroyed 3 | . . . 3 Guns 3 | . . . 3 Classes Destroyed 4 | . . . 4 Tunneler 1 | . . . 1 Grunt 2 | . . . 2 Artisan 1 | . . . 1 Subdweller 1 | . . . 1 Best Kill Streak 3 | . . . 3 Combat Bots Only 2 | . . . 2 Max Kills in Single Turn 1 | . . . 1 Gunslinging . | . . . . Exploded . | . . . . Melee . | . . . . Uniques/NPCs Destroyed . | . . . . Combat | -11 -10 -10 -10 -------- Run | Yrd Mat Min Sub Hostile Shots Fired 81 | . . . 81 Missed 13 | . . . 13 Damage Taken 647 | . . . 647 Core 254 | . . . 254 Absorbed by Shields . | . . . . Ignored by Resistances 361 | . . . 361 Core Remaining (%) 100 | 100 . . . Volleys Fired 20 | . . . 20 Largest 2 | . . . 2 Hottest 100 | . . . 100 Shots Fired 35 | . . . 35 Gun 30 | . . . 30 Cannon . | . . . . Launcher . | . . . . Special 5 | . . . 5 Kinetic 15 | . . . 15 Thermal 20 | . . . 20 Explosive . | . . . . Electromagnetic . | . . . . Robot Hit Streak 22 | . . . 22 Robot Miss Streak 1 | . . . 1 Penetration Max . | . . . . Secondary Targets . | . . . . Shots Hit Robots 24 | . . . 24 Core Hits 7 | . . . 7 Critical Kills . | . . . . Critical Parts Destroyed . | . . . . Critical Strikes 1 | . . . 1 Burn 1 | . . . 1 Melee Attacks . | . . . . Impact . | . . . . Slashing . | . . . . Piercing . | . . . . Sneak Attacks . | . . . . Combat Hostiles . | . . . . Follow-up Attacks . | . . . . Damage Inflicted 437 | . . . 437 Guns 340 | . . . 340 Cannons . | . . . . Explosions . | . . . . Melee . | . . . . Ramming 49 | . . . 49 Kinetic 177 | . . . 177 Thermal 211 | . . . 211 Explosive . | . . . . Electromagnetic . | . . . . Impact . | . . . . Slashing . | . . . . Piercing . | . . . . Highest Corruption 6 | . . . 6 Average Corruption 3 | . . . 3 Corruption Purged . | . . . . Corruption Blocked . | . . . . Overload Shots . | . . . . Overflow Damage . | . . . . Projectiles . | . . . . Explosions . | . . . . Melee . | . . . . Knockbacks . | . . . . Impact . | . . . . Kinetic . | . . . . Secondary . | . . . . Self-Inflicted Damage 31 | . . . 31 Shots . | . . . . Rammed 5 | . . . 5 Targets Rammed 5 | . . . 5 Kicked . | . . . . Crushed . | . . . . Highest Temperature 45 | . . . 45 Average Temperature 29 | . . . 29 Received Heat Transfer 444 | . . . 444 Siege Activations . | . . . . Robots Corrupted . | . . . . Combat Hostiles . | . . . . Parts Fried . | . . . . Impact Corruptions . | . . . . Robots Melted . | . . . . Combat Hostiles . | . . . . Parts Melted 1 | . . . 1 Heat Transferred 581 | . . . 581 Parts Sabotaged . | . . . . Parts Stolen . | . . . . Parts Stripped . | . . . . Power Chain Reactions . | . . . . Missiles Intercepted . | . . . . Alert | -11 -10 -10 -10 ------- Run | Yrd Mat Min Sub Peak Influence . | . . . . Initial . | . . . . Average . | . . . . Maximum Alert Level . | . . . . Low Security (%) 100 | . 100 100 . Level 1 . | . . . . Level 2 . | . . . . Level 3 . | . . . . Level 4 . | . . . . Level 5 . | . . . . High Security . | . . . . Max Security . | . . . . Squads Dispatched . | . . . . Investigation . | . . . . Extermination . | . . . . Reinforcement . | . . . . Assault . | . . . . Garrison . | . . . . Intercept . | . . . . Searches Triggered . | . . . . Construction Impeded . | . . . . Haulers Reinforced . | . . . . Active Scanning Responses . | . . . . Cargo Convoy Interrupts . | . . . . Stealth | -11 -10 -10 -10 --------- Run | Yrd Mat Min Sub Distress Signals . | . . . . Communications Jammed . | . . . . Distress Signals . | . . . . Times Spotted 16 | . . . 16 Peak Tracking Total 4 | . . . 4 Tactical Retreats 1 | . . . 1 Traps | -11 -10 -10 -10 ------- Run | Yrd Mat Min Sub Traps Triggered . | . . . . Indirectly . | . . . . Trap Hack Attempts . | . . . . Triggered . | . . . . Disarmed . | . . . . Reprogrammed . | . . . . Reused . | . . . . Traps Extracted . | . . . . Installed . | . . . . Triggered . | . . . . Machines | -11 -10 -10 -10 ---------- Run | Yrd Mat Min Sub Machines Disabled . | . . . . Max in Single Turn . | . . . . Machines Repaired . | . . . . Machines Dismantled . | . . . . Machines Sabotaged . | . . . . Overloaded Fab Kills . | . . . . Hacking | -11 -10 -10 -10 --------- Run | Yrd Mat Min Sub Machines Accessed . | . . . . Terminals . | . . . . Fabricators . | . . . . Repair Stations . | . . . . Recycling Units . | . . . . Scanalyzers . | . . . . Garrison Access . | . . . . Total Hacks . | . . . . Successful . | . . . . Failed . | . . . . Catastrophic . | . . . . Database Lockouts . | . . . . Manual . | . . . . Terminals . | . . . . Fabricators . | . . . . Repair Stations . | . . . . Recycling Units . | . . . . Scanalyzers . | . . . . Garrison Access . | . . . . Terminal Hacks . | . . . . Fabricator Hacks . | . . . . Repair Station Hacks . | . . . . Recycling Unit Hacks . | . . . . Scanalyzer . | . . . . Garrison Access Hacks . | . . . . Unauthorized Hacks . | . . . . Terminals . | . . . . Fabricators . | . . . . Repair Stations . | . . . . Recycling Units . | . . . . Scanalyzers . | . . . . Garrison Access . | . . . . Data Cores Recovered . | . . . . Used . | . . . . Hacking Detections . | . . . . Full Trace Events . | . . . . Feedback Events . | . . . . Feedback Blocked . | . . . . Robot Schematics Acquired . | . . . . Robots Built . | . . . . Authchips . | . . . . Time . | . . . . Total Robot Build Rating . | . . . . Part Schematics Acquired . | . . . . Parts Built . | . . . . Authchips . | . . . . Time . | . . . . Total Part Build Rating . | . . . . Parts Repaired . | . . . . Time . | . . . . Parts Recycled . | . . . . Recycled Matter . | . . . . Retrieved Matter . | . . . . Retrieved Components . | . . . . Parts Scanalyzed . | . . . . Part Schematics Acquired . | . . . . Parts Damaged . | . . . . Bothacking | -11 -10 -10 -10 ------------ Run | Yrd Mat Min Sub Used RIF Installer . | . . . . Robots Hacked 1 | . . . 1 Non-combat . | . . . . Combat 1 | . . . 1 Robot Hacks Applied 1 | . . . 1 find_shortcuts 1 | . . . 1 Relay Couplers Released . | . . . . Fabnet Peak Effective % . | . . . . Robots Rewired . | . . . . Allies Hacked . | . . . . Hacks Repelled . | . . . . Allies | -11 -10 -10 -10 -------- Run | Yrd Mat Min Sub Total Allies . | . . . . Largest Group . | . . . . Highest-Rated Group . | . . . . Highest-Rated Ally . | . . . . Total Orders . | . . . . Ally Attacks . | . . . . Total Damage . | . . . . Kills . | . . . . Allies Corrupted . | . . . . Allies Melted . | . . . . Intel | -11 -10 -10 -10 ------- Run | Yrd Mat Min Sub Robot Analysis Total 4 | . . 1 3 Derelict Logs Recovered . | . . . . Drone Launches . | . . . . Drone Recoveries . | . . . . Exploration | -11 -10 -10 -10 ------------- Run | Yrd Mat Min Sub Turns Passed 702 | . 12 16 674 Spaces Moved 523 | 1 24 19 479 Core 64 | 1 24 12 27 Treads 222 | . . . 222 Legs . | . . . . Wheels 237 | . . 7 230 Hover . | . . . . Flight . | . . . . Fastest Speed 50 | 50 50 50 50 Average Speed 113 | 50 50 61 119 Slowest Speed 300 | 50 50 80 300 Overloaded Moves . | . . . . Propulsion Burnouts . | . . . . Robots Hopped . | . . . . Cave-ins Triggered . | . . . . Exploration Rate (%) 8 | 2 8 8 15 Regions Visited 3 Branch Regions 2 Pre-discovered Areas 1 | . . . 1 Known Exits Taken 3 | 1 1 1 . Unknown Exits Taken . | . . . . Scrap Searched 1 | . . . 1 Spaces Dug . | . . . . Terrain Destroyed . | . . . . Melee . | . . . . Projectile . | . . . . AOE . | . . . . Terrain Rammed 11 | . . . 11 Walls Destroyed . | . . . . Machines Disabled . | . . . . Actions | -11 -10 -10 -10 --------- Run | Yrd Mat Min Sub Total 562 | . 23 23 516 Wait 1 | . . . 1 Move 520 | . 23 18 479 Hop . | . . . . Pick Up . | . . . . Fast Attach . | . . . . Attach . | . . . . Detach . | . . . . Swap . | . . . . Drop . | . . . . Fire 20 | . . . 20 Melee . | . . . . Ram 16 | . . . 16 Kick . | . . . . Crush . | . . . . Escape Stasis . | . . . . Rewire . | . . . . Trap . | . . . . Miscellaneous 5 | . . 5 . Route ------- -11/Scrapyard -10/Materials -10/Mines -10/Subcaves History --------- Turn | Location | Event 1 | -11/Scrapyard | Identified exit to Materials 1 | -11/Scrapyard | Discovered exit to Materials (range 0) 1 | -11/Scrapyard | Entered Materials 5 | -10/Materials | Identified exit to Mines 5 | -10/Materials | Discovered exit to Mines (range 16) 13 | -10/Materials | Entered Mines 19 | -10/Mines | Met a Derelict bent on vengeance 27 | -10/Mines | Identified exit to Subcaves 27 | -10/Mines | Discovered exit to Subcaves (range 3) 29 | -10/Mines | Entered Subcaves 55 | -10/Subcaves | Shifting Twisted Machinery released Sub. Monowheel 56 | -10/Subcaves | Shifting Twisted Machinery released Sub. Machine Gun 79 | -10/Subcaves | Learned location of Zion (-6) 79 | -10/Subcaves | Met a Zionite searching for "candidates" 215 | -10/Subcaves | A swath of the cavern ceiling suddenly collapsed 364 | -10/Subcaves | A swath of the cavern ceiling suddenly collapsed 648 | -10/Subcaves | Core integrity fell below 50% 683 | -10/Subcaves | Core integrity fell below 20% 703 | -10/Subcaves | Destroyed by Y-45 Defender with Beam Rifle Last Messages --------------- 00680_ Destabilizing: Short circuit. 00683_ Slammed into Earth. 00683_ Destabilizing: Core damaged (-12). 00683_ Destabilizing: System corrupted (+1). 00685_ Critical hit (Burn: +37). 00686_ Slammed into Earth. 00686_ Destabilizing: System corrupted (+1). 00689_ Slammed into Earth. 00689_ Destabilizing: Core damaged (-5). 00692_ Slammed into Earth. 00692_ Destabilizing: Core damaged (-2). 00692_ Destabilizing: System corrupted (+1). 00694_ Critical hit (Burn: +37). 00695_ Slammed into Earth. 00695_ Destabilizing: Core damaged (-2). 00698_ Slammed into Earth. 00698_ Destabilizing: System corrupted (+2). 00700_ Broken Wheel destroyed. 00700_ Critical hit (Burn: +37). 00701_ Slammed into Earth. Map ----- +----------------------------------------------------+ | ?????????????????????????????????????????????????? | | ?????????????????????????????????????????????????? | | ?????????????????????????????????????????????????? | | ?????????????????????????????????????????????????? | | ?????????????????????????????????????????????????? | | ?????????????????????????????????????????????????? | | ?????????????????????????????????????????????????? | | ?????????????????????????????????????????????????? | | ?????????????????????????????????????????????????? | | ?????????????????????????????????????????????????? | | ?????????????????????????????????????????????????? | | ??????????????????????? ?????????????????????????? | | ??????????????????#???????????#??????????????????? | | ???????????????????#?????????????????????????????? | | ??????????#????#?????????????????????????????????? | | ?????????????????????????????????????????????????? | | ?????????????????????????????????????????????????? | | ????????????????????????%????????????????????????? | | ???????????#??????????## ?##?????????????????????? | | ??????????????????????# # #?? ??????????????????? | | ?????????????????????? "" ?????????????????????? | | ??????????????????????? " ??????????#???????????? | | ??????????????????????? #??????????????????????? | | ????#????????######???? #??????????????????????? | | ?????????##### #########??????????????????????? | | ???????### ## ###O##?#??#????????????????? | | ??????## ###;;"#?????????????????????? | | ?????## ## ##;;##?????????????????????? | | #???## ! ###### ####; ##????????????????????? | | #???# ##### # ###Y ##???????????????????? | | #??## # #???????????????????? | | ##?# # # ##???????????????????? | | ### #### #????????????????????? | | ## #??# ##???????????????????? | | =""" ## ##??## #???????????????????? | | """ ## ## #????# #??#????????????????? | | [ ####### #### ##????# ##???????????????????? | | ###########?## ####?## #????????????????????? | | ### ###### [ ## ### ##???????????????????? | | ## ## *=## % ##??????????????????? | | ?# &&## ###????????????????? | | ?# !& #????????????????? | | ## "## % ##### #????????????????? | | # ###"########???###????????????????? | | #####""##??????????????????????????? | | """ ## #??#"#""##?????????????????????????? | | ## #####??###"""##????????????????????????? | | #### #??????"#"##""##???????????????????????? | | ???### #????##""###"""##??????????????????????? | | ?????######????#"###"""#""#??????????????????????? | +----------------------------------------------------+ Best States ------------- Heat Dissipation 36 Energy Generation 17 Energy Capacity 215 Matter Stores 100 Matter Capacity 100 Sight Range 16 Terrain Scan Range 16 Terrain Scan Density 10 Armor Coverage 150 Resistance: KI 35 Resistance: TH 35 Resistance: EX 85 Resistance: EM 35 Resistance: I 60 Resistance: S 35 Resistance: P 35 Evasion (%) 50 Recoil Reduction 2 Offensive Hacking 20 Item Schematics ----------------- None Robot Schematics ------------------ None Fabricated ------------ Nothing Alien Tech Used ----------------- None Achievements -------------- None Challenges ------------ None Polymind | -11 -10 -10 -10 ---------- Run | Yrd Mat Min Sub Hosts 5 | . . 1 4 Combat Hostiles 1 | . . . 1 Allies . | . . . . Unique Host Classes 4 | . . 1 3 Average Host Suspicion 67 | . . . 68 Unsuspicious Activity 133 | . . 27 106 Returns to Shadow 1 | . . . 1 Fuzzy Dispatches . | . . . . Protomatter Created 110 | . . . 110 Used 88 | . . 5 83 Decayed 13 | . . . 13 Highest Spend 40 | . . 5 40 Top 5 Hosts by Kills: Y-45 Defender (-10/Subcaves: 3) Game ------ Seed CannonFlakMicroactuators Manual? 0 Play Time 00:04:21 Cumulative 556.4 hours Start 2024.01.01 @ 00:36:41 End 2024.01.01 @ 00:40:42 Sessions 1 Manual Loads 0 Difficulty Explorer Special Mode Winter2022/Polymind Game No. 437 Rogue 167 Adventurer 123 Explorer 147 Win Type - Total 24 Types 19/0/3/1/0/0/0/1/0 Lore% 75 Gallery% 89 Achievement% 74 Wizard Run 0 Options --------- ASCII 0 Keyboard 1 Movement Numpad Keybinds 0 Fullscreen 2 Font 18/X11Bold Map View 76x50 Zoom Use 0% Tactical HUD 1 Map Filters NONE Filters NONE Steam 1 RUN: eb076ed0-1911-4e76-b636-58466580c856